bitfinex/quotes_ETHUSD_20250822
["timestamp","ask_amount","ask_price","bid_price","bid_amount"]
[1755867933729,0.001,4266.3,4266.2,6.96081524]
[1755867933931,0.001,4266.3,4266.2,7.05475624]
[1755867934332,0.02,4267.8,4266.6,0.66]
[1755867934539,0.02,4267.8,4266.7,36.47437021]
[1755867934866,0.02,4267.8,4266.7,10.67675268]
[1755867935168,0.0192,4266.8,4266.7,9.375576]
[1755867935466,0.0192,4266.8,4266.7,11.71930768]
[1755867936366,0.0192,4266.8,4266.7,11.83610768]
[1755867937638,0.0192,4266.8,4266.7,11.83570533]
[1755867938972,0.0192,4266.8,4266.7,11.83470533]
[1755867940357,0.0192,4266.8,4266.7,7.78070533]
[1755867940534,0.0192,4266.8,4266.7,9.48997365]
[1755867941141,0.0192,4266.8,4266.7,11.83370533]
[1755867941566,0.0192,4266.8,4266.7,5.32017365]
[1755867941760,0.0192,4266.8,4266.7,8.91837365]
[1755867941961,0.0192,4266.8,4266.7,11.73180533]
[1755867942873,0.0192,4266.8,4266.7,9.38807365]
[1755867943044,0.0192,4266.8,4266.7,8.91837365]
[1755867943985,0.3246,4266.8,4266.7,3.92005439]
[1755867944188,2.66827676,4266.8,4266.7,0.92005439]
[1755867944469,0.59142768,4266.8,4266.7,4.26863583]
[1755867944654,0.59142768,4266.8,4266.7,4.053]
[1755867944655,0.3246,4266.8,4266.7,4.053]
[1755867945265,0.0192,4266.8,4266.7,8.7074718]
[1755867945473,0.0192,4266.8,4266.7,11.05120348]
[1755867946748,0.0192,4266.8,4266.7,10.83563168]
[1755867946956,0.0192,4266.8,4266.7,11.05109049]
[1755867947154,0.0184,4266.8,4266.7,11.05109049]
[1755867949095,0.0184,4266.8,4266.7,11.05009049]
[1755867950506,0.0184,4266.8,4266.7,10.58039049]
[1755867950879,0.0184,4266.8,4266.7,4.18465881]
[1755867951227,0.3238,4266.8,4266.7,0.21545881]
[1755867951509,0.795,4266.8,4266.7,0.21545881]
[1755867951683,0.795,4266.8,4266.7,1.90645881]
[1755867952004,0.3238,4266.8,4266.7,1.90645881]
[1755867952507,0.0184,4266.8,4266.7,6.06630469]
[1755867952680,0.3238,4266.8,4266.7,4.06610469]
[1755867952883,0.0184,4266.8,4266.7,7.711]
[1755867953086,0.0184,4266.8,4266.7,10.27096739]
[1755867953380,0.0184,4266.8,4266.7,10.58016739]
[1755867953584,0.0184,4266.8,4266.7,11.04986739]
[1755867953781,0.0184,4266.8,4266.7,11.05007476]
[1755867954221,0.0184,4266.8,4266.7,10.58037476]
[1755867954431,0.0184,4266.8,4266.7,10.27117476]
[1755867954605,0.3238,4266.8,4266.7,7.92744308]
[1755867954776,0.0184,4266.8,4266.7,10.27117476]
[1755867955118,0.0184,4266.8,4266.7,11.05007476]
[1755867955519,0.0184,4266.8,4266.7,10.58037476]
[1755867955721,0.0184,4266.8,4266.7,8.94120808]
[1755867955891,0.0184,4266.8,4266.7,11.28493976]
[1755867956443,0.0184,4266.8,4266.7,11.75463976]
[1755867956723,0.3238,4266.8,4266.7,4.58100808]
[1755867957126,0.795,4266.8,4266.7,8.63100808]
[1755867957313,0.795,4266.8,4266.7,7.97100808]
[1755867958423,0.0184,4266.8,4266.7,8.63100808]
[1755867958625,0.0184,4266.8,4266.7,8.94020808]
[1755867958789,0.0184,4266.8,4266.7,11.28393976]
[1755867958992,0.0184,4266.8,4266.7,11.75363976]
[1755867959497,0.0176,4266.8,4266.7,8.63100808]
[1755867959824,0.323,4266.8,4266.7,8.63100808]
[1755867959996,0.7942,4266.8,4266.7,8.63100808]
[1755867960701,0.7942,4266.8,4266.7,0.92100808]
[1755867960901,3.13787676,4266.8,4266.7,0.21644308]
[1755867961123,3.13787676,4266.8,4266.7,2.25244308]
[1755867961423,3.6860248,4266.8,4266.7,2.25342525]
[1755867961629,4.05274585,4266.8,4266.7,2.25342525]
[1755867961813,4.05274585,4266.8,4266.7,0.21744965]
[1755867963421,3.0,4266.7,4265.8,0.004]
[1755867963627,2.34411626,4266.0,4265.9,0.21733826]
[1755867963824,2.81531626,4266.0,4265.9,0.21733826]
[1755867964028,3.12071626,4266.0,4265.9,0.21733826]
[1755867964325,2.34417121,4265.9,4265.8,0.004]
[1755867964524,5.64957121,4265.9,4265.8,0.004]
[1755867964705,7.19122763,4265.9,4265.8,0.004]
[1755867969905,7.30699831,4265.9,4265.8,0.004]
[1755867970960,2.34461091,4265.1,4265.0,0.004]
[1755867971120,9.68181091,4265.1,4265.0,0.004]
[1755867971319,10.88444556,4265.1,4265.0,0.004]
[1755867971558,11.31194556,4265.1,4265.0,0.004]
[1755867971866,11.67808814,4265.1,4265.0,0.004]
[1755867973051,2.99795349,4265.1,4265.0,0.004]
[1755867973666,2.71075349,4265.1,4265.0,0.004]
[1755867974374,0.36694258,4265.1,4265.0,0.751]
[1755867974582,0.36694258,4265.1,4265.0,0.2908]
[1755867975158,0.36694258,4265.1,4265.0,0.751]
[1755867975547,0.36694258,4265.1,4265.0,1.62662768]
[1755867975771,0.36694258,4265.1,4265.0,1.79363522]
[1755867976172,2.34425173,4265.8,4265.0,1.79363522]
[1755867976369,3.0,4266.1,4265.1,0.21562768]
[1755867976688,2.34441146,4265.5,4265.0,0.004]
[1755867977095,2.34426769,4265.8,4265.4,0.2868]
[1755867977244,2.34428851,4265.7,4265.4,0.2868]
[1755867977853,2.34434061,4265.6,4265.4,0.2868]
[1755867978149,2.34429338,4265.7,4265.4,0.2868]
[1755867978374,2.34422868,4265.8,4265.4,0.2868]
[1755867978776,4.05,4266.2,4265.4,0.747]
[1755867978978,2.34401264,4266.2,4265.4,0.747]
[1755867979151,2.34400179,4266.3,4265.5,0.02344391]
[1755867979346,0.36681106,4266.1,4265.6,0.4602]
[1755867979590,0.36681106,4266.1,4265.2,1.803]
[1755867979591,0.36681106,4266.1,4266.0,0.2868]
[1755867980083,0.36681106,4266.1,4266.0,0.747]
[1755867980786,0.36681106,4266.1,4266.0,0.2868]
[1755867981356,0.36681106,4266.1,4265.6,0.4602]
[1755867981557,2.71087238,4266.1,4265.6,0.4602]
[1755867981757,2.41542165,4265.7,4265.2,1.803]
[1755867981958,2.41542165,4265.7,4265.3,0.21534542]
[1755867982267,0.0711,4265.7,4265.3,0.21534542]
[1755867982452,0.0711,4265.7,4265.2,1.803]
[1755867982655,2.34439461,4265.5,4265.2,1.803]
[1755867983060,2.34433167,4265.7,4265.2,1.803]
[1755867983255,0.36685159,4265.5,4265.3,0.4602]
[1755867983483,0.36685159,4265.5,4265.4,0.747]
[1755867983874,0.36605159,4265.5,4265.4,0.747]
[1755867984092,0.36605159,4265.5,4265.4,1.62247302]
[1755867984691,1.0746,4266.8,4265.5,0.66]
[1755867984871,0.0186,4266.8,4265.6,4.28691638]
[1755867985071,0.36679445,4266.1,4265.7,0.21547302]
[1755867985273,0.36679445,4266.1,4266.0,0.2868]
[1755867985480,0.36679445,4266.1,4266.0,0.21547302]
[1755867985675,0.36679445,4266.1,4265.5,4.708]
[1755867985873,0.4275,4266.6,4265.6,0.21572175]
[1755867985874,2.34396046,4266.3,4265.6,0.21572175]
[1755867986074,2.34396046,4266.3,4265.7,0.21572175]
[1755867986378,2.34396046,4266.3,4265.8,0.21572175]
[1755867986574,2.34396046,4266.3,4265.9,0.21572175]
[1755867986774,2.34396046,4266.3,4266.0,0.21572175]
[1755867986982,0.0186,4266.8,4266.2,0.2868]
[1755867987187,0.0186,4266.8,4266.4,0.66]
[1755867987405,0.0186,4266.8,4266.7,0.2868]
[1755867987576,0.0186,4266.8,4266.7,0.50259952]
[1755867987778,0.0186,4266.8,4266.7,0.96279952]
[1755867988313,0.0186,4266.8,4266.7,1.62279952]
[1755867988515,0.0186,4266.8,4266.7,1.64623683]
[1755867988683,0.0186,4266.8,4266.7,3.93879267]
[1755867988869,0.0186,4266.8,4266.7,7.15451826]
[1755867989068,0.0186,4266.8,4266.7,7.13108095]
[1755867990220,0.0186,4266.8,4266.7,9.00845676]
[1755867991523,0.0186,4266.8,4266.7,4.13683308]
[1755867991805,0.0186,4266.8,4266.7,7.50790749]
[1755867992006,0.0186,4266.8,4266.7,7.72351796]
[1755867992513,0.0186,4266.8,4266.7,8.84371796]
[1755867993077,0.0186,4266.8,4266.7,11.18744964]
[1755867995378,0.0186,4266.8,4266.7,11.30424964]
[1755867996174,0.0178,4266.8,4266.7,7.25724964]
[1755867996387,0.0178,4266.8,4266.7,11.30224964]
[1755867997203,0.0178,4266.8,4266.7,7.14044964]
[1755867997378,0.0178,4266.8,4266.7,11.18544964]
[1755867997984,0.0178,4266.8,4266.7,11.06378017]
[1755867998312,0.0178,4266.8,4266.7,11.27865026]
[1755867998876,0.0178,4266.8,4266.7,11.27867148]
[1755867999112,0.0178,4266.8,4266.7,7.23367148]
[1755867999300,0.0178,4266.8,4266.7,0.3889988]
[1755867999500,0.0178,4266.8,4266.7,4.4329988]
[1755867999712,0.3246,4266.8,4266.7,4.4329988]
[1755868000024,0.771,4266.8,4266.7,0.3889988]
[1755868000311,1.08246218,4266.8,4266.7,4.044]
[1755868000522,3.42613894,4266.8,4266.7,4.044]
[1755868000689,2.34389892,4266.4,4265.3,5.634]
[1755868001017,1.08246218,4266.8,4266.2,4.044]
[1755868001018,0.32926218,4266.8,4266.2,4.044]
[1755868001327,0.0178,4266.8,4266.3,0.21521619]
[1755868001509,0.0178,4266.8,4266.4,0.89865515]
[1755868001825,0.38453666,4266.8,4266.7,0.9707]
[1755868002030,0.0178,4266.8,4266.7,1.2093535]
[1755868002190,0.0178,4266.8,4266.7,3.99818518]
[1755868002403,0.0178,4266.8,4266.7,6.99818518]
[1755868002584,0.0178,4266.8,4266.7,6.97474787]
[1755868003884,0.0178,4266.8,4266.7,7.91921619]
[1755868004290,0.0178,4266.8,4266.7,11.01874787]
[1755868005182,0.0178,4266.8,4266.7,4.63101619]
[1755868005382,0.0178,4266.8,4266.7,11.01774787]
[1755868005605,0.0178,4266.8,4266.7,4.18591619]
[1755868005783,0.0178,4266.8,4266.7,11.04118518]
[1755868005980,0.0178,4266.8,4266.7,8.67401619]
[1755868006492,0.0178,4266.8,4266.7,6.97474787]
[1755868006701,0.0178,4266.8,4266.7,8.22891619]
[1755868006900,0.0178,4266.8,4266.7,0.21521619]
[1755868007099,0.0178,4266.8,4266.7,4.25883858]
[1755868007312,0.0178,4266.8,4266.7,4.91888674]
[1755868007808,0.0178,4266.8,4266.7,4.91894286]
[1755868008117,0.0178,4266.8,4266.7,4.91897595]
[1755868008516,0.017,4266.8,4266.7,4.91897595]
[1755868009009,0.017,4266.8,4266.7,7.26270763]
[1755868009388,0.3238,4266.8,4266.7,0.87597595]
[1755868010114,0.7702,4266.8,4266.7,4.25897595]
[1755868010725,3.11387676,4266.8,4266.7,4.25797595]
[1755868010923,0.7702,4266.8,4266.7,4.25797595]
[1755868011088,3.65961405,4266.8,4266.7,4.25797595]
[1755868011436,3.65961405,4266.8,4266.7,0.21597595]
[1755868011785,2.34379014,4266.6,4266.4,4.042]
[1755868011985,2.34379014,4266.6,4266.5,0.2164201]
[1755868012185,2.34374064,4266.7,4266.5,0.2164201]
[1755868012386,0.38372809,4266.8,4266.6,0.2164201]
[1755868012594,0.38372809,4266.8,4266.4,4.042]
[1755868012595,0.7532,4266.7,4266.4,4.042]
[1755868012817,0.3068,4266.7,4266.5,0.21644555]
[1755868013025,2.6505381,4266.7,4266.6,0.21644555]
[1755868013613,2.9872381,4266.7,4266.6,0.21644555]
[1755868013809,3.55869691,4266.7,4266.6,0.21644555]
[1755868014321,0.87825881,4266.7,4266.6,4.25844555]
[1755868014489,0.3068,4266.7,4266.6,4.25844555]
[1755868014694,0.38372809,4266.8,4266.6,4.25844555]
[1755868014922,0.38372809,4266.8,4266.7,0.21644555]
[1755868015107,0.58222809,4266.8,4266.7,0.21644555]
[1755868015310,0.38372809,4266.8,4266.7,0.21644555]
[1755868015701,2.92830485,4266.8,4266.7,0.21644555]
[1755868015912,3.89699357,4266.8,4266.7,0.21644555]
[1755868016097,3.53026548,4266.8,4266.7,0.21644555]
[1755868016298,2.34375753,4266.7,4266.3,4.042]
[1755868016497,2.34384155,4266.5,4266.4,0.21683013]
[1755868016712,2.54234155,4266.5,4266.4,0.21683013]
[1755868016918,3.52927981,4266.5,4266.3,4.042]
[1755868017121,0.74152626,4266.5,4266.4,0.21686909]
[1755868017320,2.54234155,4266.5,4266.4,0.21686909]
[1755868017723,2.98624155,4266.5,4266.4,0.21686909]
[1755868020830,2.34359453,4265.5,4265.4,0.869]
[1755868021132,3.09679453,4265.5,4265.4,1.0858989]
[1755868021430,3.09679453,4265.5,4265.4,0.2168989]
[1755868021431,3.64090572,4265.5,4265.4,0.2168989]
[1755868023213,2.34389649,4266.4,4266.3,0.004]
[1755868023408,2.92999649,4266.4,4266.3,0.004]
[1755868023640,0.1427,4266.4,4266.3,0.004]
[1755868023847,2.48659649,4266.4,4266.3,0.004]
[1755868024017,2.96963594,4266.4,4266.3,0.004]
[1755868024225,3.77983642,4266.4,4266.3,0.004]
[1755868025010,3.33643642,4266.4,4266.3,0.004]
[1755868025649,0.99253993,4266.4,4266.3,0.004]
[1755868025837,2.71069697,4266.4,4266.3,0.004]
[1755868026044,2.85339697,4266.4,4266.3,0.004]
[1755868026348,2.92999649,4266.4,4266.3,0.004]
[1755868026524,2.48659649,4266.4,4266.3,0.004]
[1755868026957,2.9696361,4266.4,4266.3,0.004]
[1755868027257,3.4130361,4266.4,4266.3,0.004]
[1755868027713,7.4550361,4266.4,4266.3,0.004]
[1755868028622,2.9696361,4266.4,4266.3,0.004]
[1755868028830,7.4667361,4266.4,4266.3,0.004]
[1755868030642,2.8269361,4266.4,4266.3,0.004]
[1755868030843,3.5696361,4266.4,4266.3,0.004]
[1755868031330,3.93646273,4266.4,4266.3,0.004]
[1755868032366,5.73946273,4266.4,4266.3,0.004]
[1755868032664,2.34455594,4265.2,4265.1,0.21637605]
[1755868032976,2.81265988,4265.2,4265.1,0.21637605]
[1755868033193,2.34461091,4265.1,4264.8,0.02]
[1755868033356,2.54301091,4265.1,4264.8,0.02]
[1755868033662,2.34461091,4265.1,4264.8,0.02]
[1755868033887,2.54551091,4265.1,4264.8,0.02]
[1755868034168,3.97311631,4265.1,4264.8,0.02]
[1755868036381,6.97311631,4265.1,4264.8,0.02]
[1755868037772,6.52211631,4265.1,4264.8,0.02]
[1755868037974,10.56311631,4265.1,4264.8,0.02]
[1755868038555,6.52211631,4265.1,4264.8,0.02]
[1755868038758,5.34461091,4265.1,4265.0,0.3137]
[1755868038987,5.34461091,4265.1,4265.0,0.7449]
[1755868039191,5.34461091,4265.1,4265.0,0.004]
[1755868039492,5.71151475,4265.1,4265.0,0.7449]
[1755868039782,5.71151475,4265.1,4265.0,0.004]
[1755868039996,11.24881996,4265.1,4265.0,0.004]
[1755868040208,11.70491996,4265.1,4265.0,0.004]
[1755868040599,7.20781996,4265.1,4265.0,0.004]
[1755868040825,11.24881996,4265.1,4265.0,0.004]
[1755868040997,10.96221996,4265.1,4265.0,0.004]
[1755868041194,6.92121996,4265.1,4265.0,0.004]
[1755868041733,0.36690384,4265.1,4265.0,0.7449]
[1755868042416,0.36690384,4265.1,4265.0,0.96126534]
[1755868042786,2.71151475,4265.1,4265.0,0.96126534]
[1755868042986,2.71151475,4265.1,4265.0,0.22036534]
[1755868043303,2.71151475,4265.1,4265.0,0.3137]
[1755868043620,3.21711679,4265.1,4265.0,0.2204604]
[1755868043919,3.35041679,4265.1,4265.0,0.004]
[1755868044084,7.39141679,4265.1,4265.0,0.004]
[1755868044824,7.84431679,4265.1,4265.0,0.004]
[1755868045186,7.84351679,4265.1,4265.0,0.004]
[1755868045382,10.84351679,4265.1,4265.0,0.004]
[1755868046195,10.47741295,4265.1,4265.0,0.004]
[1755868046400,10.60890732,4265.1,4265.0,0.004]
[1755868046636,11.11396433,4265.1,4265.0,0.004]
[1755868047003,11.11396433,4265.1,4265.0,1e-08]
[1755868048118,11.11396433,4265.1,4264.5,0.004]
[1755868048119,0.66,4264.9,4264.5,0.004]
[1755868048309,2.34505815,4264.3,4263.8,0.024]
[1755868048504,0.2866,4263.9,4263.8,0.024]
[1755868048710,6.67287076,4263.9,4263.8,0.024]
[1755868048906,2.34538077,4263.7,4262.5,0.004]
[1755868049111,7.30962671,4263.7,4262.5,0.004]
[1755868049342,9.31135353,4263.7,4262.5,0.004]
[1755868049647,8.80620196,4263.7,4262.5,0.004]
[1755868049846,9.17327366,4263.7,4262.5,0.004]
[1755868050050,12.17327366,4263.7,4262.5,0.004]
[1755868051408,7.67617366,4263.7,4262.5,0.4352]
[1755868051710,11.29907929,4263.7,4263.0,0.4312]
[1755868051907,7.25807929,4263.7,4263.0,0.4312]
[1755868052230,11.29907929,4263.7,4263.0,0.4312]
[1755868052615,7.25807929,4263.7,4263.0,0.4312]
[1755868052815,7.25807929,4263.7,4263.6,0.3137]
[1755868053011,9.75345247,4263.7,4263.6,0.7449]
[1755868053243,2.71245247,4263.7,4263.6,0.7449]
[1755868053444,0.3670717,4263.7,4263.6,0.7449]
[1755868053845,2.71245247,4263.7,4263.6,0.7449]
[1755868054211,0.3670717,4263.7,4263.6,0.7449]
[1755868056156,0.3670717,4263.7,4263.6,0.96100084]
[1755868056453,0.3670717,4263.7,4263.6,0.96101404]
[1755868056756,0.3670717,4263.7,4263.6,0.7449]
[1755868057155,0.3670717,4263.7,4263.6,0.96106319]
[1755868057518,0.3662717,4263.7,4263.6,0.96106319]
[1755868058424,0.3662717,4263.7,4263.6,0.96117659]
[1755868058627,0.001,4263.8,4263.6,0.96117659]
[1755868058628,2.3463293,4263.8,4263.6,0.96117659]
[1755868058828,2.34538077,4263.7,4263.6,0.004]
[1755868059028,2.66188077,4263.7,4263.6,0.004]
[1755868059231,2.34538077,4263.7,4263.6,0.004]
[1755868060247,2.34538077,4263.7,4263.6,0.3189]
[1755868060846,6.70188077,4263.7,4263.6,0.004]
[1755868061046,7.63016507,4263.7,4263.6,0.004]
[1755868061878,10.9972141,4263.7,4263.6,0.004]
[1755868062175,11.55879465,4263.7,4263.6,0.004]
[1755868062843,12.0637878,4263.7,4263.6,0.004]
[1755868063959,12.0637878,4263.7,4263.6,1e-08]
[1755868065153,7.5936878,4263.7,4263.6,1e-08]
[1755868065556,10.6807141,4263.7,4263.6,0.77850001]
[1755868066066,6.27366507,4263.7,4263.6,0.77850001]
[1755868066271,5.34538077,4263.7,4263.6,0.77850001]
[1755868066764,5.34538077,4263.7,4263.6,1e-08]
[1755868067649,5.34538077,4263.7,4263.6,0.77850001]
[1755868067977,6.38632684,4263.8,4263.6,0.77850001]
[1755868068161,2.34538077,4263.7,4263.6,0.77850001]
[1755868068348,0.001,4263.8,4263.7,0.4636]
[1755868068548,2.3463432,4263.8,4263.7,0.7785]
[1755868069186,0.001,4263.8,4263.7,0.7785]
[1755868069486,2.71333198,4263.8,4263.7,0.7785]
[1755868069658,2.71253198,4263.8,4263.7,0.7785]
[1755868071173,0.36720622,4263.8,4263.7,0.7785]
[1755868071568,2.71253198,4263.8,4263.7,0.99535125]
[1755868071792,3.38768518,4263.8,4263.7,0.21685125]
[1755868071983,2.34538077,4263.7,4263.6,1e-08]
[1755868072170,3.38768989,4263.8,4263.6,0.31490001]
[1755868072373,0.36720622,4263.8,4263.7,0.68056413]
[1755868072586,0.36720622,4263.8,4263.7,0.99546413]
[1755868073782,2.71253198,4263.8,4263.7,0.99546413]
[1755868074596,3.02903198,4263.8,4263.7,0.21696413]
[1755868075163,2.34538077,4263.7,4263.6,1e-08]
[1755868075392,3.83774675,4263.7,4263.6,0.21733658]
[1755868075806,7.87574675,4263.7,4263.6,0.21733658]
[1755868076596,8.30584675,4263.7,4263.6,1e-08]
[1755868076782,6.96954807,4263.7,4263.6,1e-08]
[1755868076989,11.51371897,4263.7,4263.6,1e-08]
[1755868077274,11.43764807,4263.7,4263.6,1e-08]
[1755868077491,11.94381708,4263.7,4263.6,1e-08]
[1755868078072,11.51371708,4263.7,4263.6,1e-08]
[1755868079011,11.94381708,4263.7,4263.6,1e-08]
[1755868080012,33.0,4263.6,4258.9,0.2353]
[1755868080223,33.0,4263.6,4258.8,0.02]
[1755868080224,2.34692201,4260.9,4259.8,0.4836]
[1755868080374,9.51682523,4260.9,4260.1,0.4636]
[1755868080574,10.02340387,4260.9,4260.1,0.4636]
[1755868081099,5.98540387,4260.9,4260.4,0.4636]
[1755868081412,10.85663095,4260.9,4260.4,0.4636]
[1755868081836,10.35005231,4260.9,4260.4,0.4636]
[1755868082026,10.58463795,4260.9,4260.4,0.4636]
[1755868082732,10.58463795,4260.9,4259.8,0.02]
[1755868082733,9.49012839,4260.9,4259.8,0.02]
[1755868082892,2.34741784,4260.0,4259.9,0.4636]
[1755868083097,2.34741784,4260.0,4259.9,0.7785]
[1755868083708,2.34741784,4260.0,4259.9,0.7825]
[1755868083919,6.38537119,4260.1,4259.9,0.7825]
[1755868084120,2.71475165,4260.0,4259.9,0.7825]
[1755868084322,2.71475165,4260.0,4259.9,0.004]
[1755868084928,2.71475165,4260.0,4259.9,0.7825]
[1755868085968,2.34741784,4260.0,4259.9,0.7825]
[1755868086173,6.26029134,4260.0,4259.9,0.004]
[1755868086339,6.22079134,4260.0,4259.9,0.004]
[1755868086653,10.25979134,4260.0,4259.9,0.004]
[1755868087423,6.22079134,4260.0,4259.9,0.004]
[1755868088119,10.25979134,4260.0,4259.9,0.004]
[1755868088520,6.22079134,4260.0,4259.9,0.004]
[1755868088723,10.25979134,4260.0,4259.9,0.004]
[1755868089456,9.38641784,4260.0,4259.9,0.7289]
[1755868089655,9.75377125,4260.0,4259.9,0.7289]
[1755868090150,9.75377125,4260.0,4259.9,0.004]
[1755868090354,9.75477125,4260.0,4259.9,0.004]
[1755868090558,10.96498114,4260.0,4259.9,0.004]
[1755868091660,6.92498114,4260.0,4259.9,0.2919]
[1755868091853,9.75477125,4260.0,4259.9,0.7289]
[1755868092734,9.75477125,4260.0,4259.9,0.2919]
[1755868093141,5.71477125,4260.0,4259.9,0.004]
[1755868093335,9.75477125,4260.0,4259.9,0.004]
[1755868094033,10.06437125,4260.0,4259.9,0.004]
[1755868094363,7.30914115,4260.0,4259.9,0.004]
[1755868094724,11.34914115,4260.0,4259.9,0.004]
[1755868094929,7.30914115,4260.0,4259.9,0.004]
[1755868095129,11.34914115,4260.0,4259.9,0.004]
[1755868096429,10.98178774,4260.0,4259.9,0.004]
[1755868096760,11.41778774,4260.0,4259.9,0.004]
[1755868097951,10.98178774,4260.0,4259.9,0.004]
[1755868099959,7.30918195,4260.0,4259.9,0.004]
[1755868100175,11.34918195,4260.0,4259.9,0.004]
[1755868100893,7.37778774,4260.0,4259.9,0.004]
[1755868101090,10.98178774,4260.0,4259.9,0.004]
[1755868101395,11.34918456,4260.0,4259.9,0.004]
[1755868101759,7.30918456,4260.0,4259.9,0.004]
[1755868102095,11.34918456,4260.0,4259.9,0.004]
[1755868102574,7.30918456,4260.0,4259.9,0.004]
[1755868102787,0.36739682,4260.0,4259.9,0.7289]
[1755868103106,9.75481466,4260.0,4259.9,0.7289]
[1755868103310,0.36739682,4260.0,4259.9,0.7289]
[1755868103516,6.75481466,4260.0,4259.9,0.7289]
[1755868103793,0.36739682,4260.0,4259.9,0.7289]
[1755868103970,4.40739682,4260.0,4259.9,0.7289]
[1755868104378,6.75481466,4260.0,4259.9,0.7289]
[1755868105265,4.40739682,4260.0,4259.9,0.7289]
[1755868105701,6.75481466,4260.0,4259.9,0.7289]
[1755868106097,6.75481466,4260.0,4259.9,0.2919]
[1755868106408,7.10882112,4260.0,4259.9,0.004]
[1755868106580,7.10882112,4260.0,4257.8,0.02]
[1755868106581,2.3477485,4259.4,4257.8,0.02]
[1755868106908,3.0,4258.8,4257.8,0.02]
[1755868107110,2.27554419,4259.3,4258.7,0.2879]
[1755868107274,2.34807927,4258.8,4258.7,0.2879]
[1755868107607,2.34807927,4258.8,4258.7,0.7249]
[1755868107810,4.053,4258.9,4258.7,0.7249]
[1755868108201,2.34786941,4259.2,4258.8,0.437]
[1755868108506,2.347969,4259.0,4258.8,0.437]
[1755868108710,6.40102413,4258.9,4257.8,0.457]
[1755868108896,2.34842873,4258.2,4257.8,0.457]
[1755868109090,2.34856225,4258.0,4257.8,0.457]
[1755868109288,2.34846376,4258.2,4257.9,0.7249]
[1755868109502,6.40135119,4258.4,4258.0,0.437]
[1755868109807,0.8206969,4259.0,4258.3,0.2879]
[1755868110006,4.18494667,4258.9,4258.3,0.7249]
[1755868110209,0.63860192,4258.8,4258.3,0.7249]
[1755868110409,0.36747082,4258.4,4258.3,0.2879]
[1755868111002,0.36747082,4258.4,4258.3,0.7249]
[1755868111515,2.71577065,4258.4,4258.3,0.7249]
[1755868111715,2.71577065,4258.4,4258.3,0.2879]
[1755868111940,0.36747082,4258.4,4258.3,0.7249]
[1755868116123,1.806,4259.3,4258.3,0.7249]
[1755868116124,6.39786221,4259.2,4258.3,0.7249]
[1755868116422,2.47982897,4259.1,4258.4,0.437]
[1755868116622,4.05,4259.2,4259.0,0.2879]
[1755868116823,2.34781141,4259.3,4259.0,0.7249]
[1755868117024,0.63833847,4259.2,4259.0,0.7249]
[1755868117324,2.34791387,4259.1,4259.0,0.7249]
[1755868117725,2.34791387,4259.1,4259.0,0.2879]
[1755868118024,2.34775848,4259.4,4259.0,0.7249]
[1755868118322,4.045,4259.6,4259.0,0.2879]
[1755868118529,2.34798061,4259.0,4258.7,0.4599]
[1755868118699,2.34718061,4259.0,4258.7,0.4599]
[1755868118893,2.34775325,4259.4,4258.7,0.4599]
[1755868119095,2.34787453,4259.2,4258.7,0.4599]
[1755868119291,0.4045,4259.5,4258.7,0.4599]
[1755868119596,2.34790328,4259.2,4258.7,0.4599]
[1755868120032,2.34791453,4259.1,4258.8,0.4599]
[1755868120830,2.34786765,4259.2,4258.8,0.4599]
[1755868121027,2.34786273,4259.2,4258.8,0.4599]
[1755868121428,2.34797706,4259.0,4258.3,1.806]
[1755868121619,2.34797706,4259.0,4258.3,2.2659]
[1755868121934,0.36740311,4259.3,4258.3,2.2659]
[1755868122118,2.34792981,4259.1,4258.3,1.806]
[1755868122320,2.34792981,4259.1,4258.4,0.4599]
[1755868122526,0.36740311,4259.3,4259.0,0.2898]
[1755868122934,0.36740311,4259.3,4259.1,0.4599]
[1755868123108,0.36740311,4259.3,4259.2,0.7497]
[1755868123336,0.36840311,4259.3,4259.2,0.7497]
[1755868125154,0.001,4259.3,4259.2,0.7497]
[1755868126762,0.001,4259.3,4259.2,0.2898]
[1755868126965,0.001,4259.3,4258.8,0.66]
[1755868127442,0.001,4259.3,4258.8,1.1199]
[1755868127952,2.34785875,4259.2,4258.5,4.04]
[1755868128152,2.3480107,4259.0,4258.5,4.04]
[1755868128329,2.34785988,4259.2,4258.5,4.04]
[1755868128529,2.34803875,4258.9,4258.5,4.04]
[1755868128939,2.34797506,4259.0,4258.5,4.04]
[1755868129542,2.34803355,4258.9,4258.5,4.04]
[1755868129943,2.34792297,4259.1,4258.5,4.04]
[1755868130158,0.36741187,4259.2,4258.5,4.04]
[1755868130439,2.348095,4258.8,4258.5,4.04]
[1755868130643,2.34818954,4258.6,4258.5,4.04]
[1755868130847,2.64618954,4258.6,4258.3,1.81]
[1755868131135,2.82324468,4258.5,4258.3,0.004]
[1755868131358,2.9593043,4258.4,4258.3,0.004]
[1755868131563,3.4343043,4258.4,4258.3,0.004]
[1755868132744,3.56619514,4258.4,4258.3,0.004]
[1755868132946,3.4343043,4258.4,4258.3,0.004]
[1755868134636,6.4343043,4258.4,4258.3,0.004]
[1755868134831,6.56617178,4258.4,4258.3,0.004]
[1755868136469,6.68559997,4258.4,4258.3,0.004]
[1755868136835,10.72559997,4258.4,4258.3,0.004]
[1755868140076,11.09314199,4258.4,4258.3,1e-08]
[1755868142252,10.96127451,4258.4,4258.3,1e-08]
[1755868142444,11.09295657,4258.4,4258.3,1e-08]
[1755868142968,11.09391783,4258.4,4258.3,1e-08]
[1755868143176,6.57711783,4258.4,4258.3,1e-08]
[1755868143545,10.18767451,4258.4,4258.3,1e-08]
[1755868143953,10.48647451,4258.4,4258.3,1e-08]
[1755868145180,10.49907451,4258.4,4258.3,1e-08]
[1755868145545,10.6306367,4258.4,4258.3,1e-08]
[1755868145851,10.6180367,4258.4,4258.3,1e-08]
[1755868146049,10.6306367,4258.4,4258.3,1e-08]
[1755868146475,10.63061889,4258.4,4258.3,1e-08]
[1755868146677,10.26307687,4258.4,4258.3,1e-08]